bitfinex/quotes_BTCUSD_20250418
["timestamp","ask_amount","ask_price","bid_price","bid_amount"]
[1744943778537,0.28216261,84818.0,84817.0,0.0121113]
[1744943780226,0.23586261,84818.0,84817.0,0.0121113]
[1744943788585,6.361e-05,84818.0,84817.0,0.0121113]
[1744943788714,6.361e-05,84818.0,84817.0,0.08285183]
[1744943788918,6.361e-05,84818.0,84817.0,0.42285183]
[1744943789747,0.23586261,84818.0,84817.0,0.3521113]
[1744943789952,0.23586261,84818.0,84817.0,0.0121113]
[1744943791692,0.23586261,84818.0,84817.0,0.0131113]
[1744943792777,0.23586261,84818.0,84817.0,0.002]
[1744943792942,0.23586261,84818.0,84817.0,0.01308842]
[1744943793771,0.23586261,84818.0,84817.0,0.002]
[1744943794317,0.23586261,84818.0,84817.0,0.01309193]
[1744943794533,6.361e-05,84818.0,84817.0,0.002]
[1744943794742,6.361e-05,84818.0,84817.0,0.01309193]
[1744943794942,0.23586261,84818.0,84817.0,0.01309193]
[1744943803066,0.21721152,84818.0,84791.0,0.13204]
[1744943803289,0.23587409,84791.0,84790.0,0.1874685]
[1744943803467,0.23587409,84791.0,84790.0,0.354213]
[1744943804935,0.23587409,84791.0,84790.0,0.35466296]
[1744943805546,0.23587409,84791.0,84790.0,0.36347019]
[1744943807169,0.24766205,84793.0,84791.0,0.34]
[1744943807335,0.2358713,84792.0,84791.0,0.34]
[1744943808215,0.23587409,84791.0,84790.0,0.02347019]
[1744943817454,0.23587409,84791.0,84790.0,0.03100862]
[1744943818806,0.01179342,84793.0,84790.0,0.03100862]
[1744943818990,0.01179342,84793.0,84790.0,0.37100862]
[1744943819593,0.24766684,84793.0,84790.0,0.44177132]
[1744943819989,0.24766684,84793.0,84790.0,0.37100862]
[1744943820239,0.23587409,84791.0,84790.0,0.37100862]
[1744943820476,0.23587409,84791.0,84790.0,0.03100862]
[1744943823082,0.23587409,84791.0,84790.0,0.02347019]
[1744943826115,0.23587409,84791.0,84790.0,0.0310035]
[1744943831998,0.23586583,84794.0,84791.0,0.0117937]
[1744943832217,0.01179287,84797.0,84793.0,0.01179342]
[1744943832418,0.01179259,84799.0,84795.0,0.07075873]
[1744943832640,0.23585753,84797.0,84795.0,0.08255187]
[1744943832841,0.23585753,84797.0,84796.0,0.00755789]
[1744943833637,0.24764992,84798.0,84796.0,0.00755789]
[1744943833820,0.24764447,84799.0,84796.0,0.00755789]
[1744943834026,0.23585586,84798.0,84796.0,0.07831562]
[1744943834330,0.23585586,84798.0,84796.0,0.00755789]
[1744943835088,0.2358574,84797.0,84796.0,0.00755789]
[1744943835533,0.23585586,84798.0,84796.0,0.00754189]
[1744943836257,0.24764487,84799.0,84796.0,0.07829975]
[1744943836669,0.23585579,84798.0,84796.0,0.00754189]
[1744943836860,0.2358574,84797.0,84796.0,0.00754189]
[1744943837205,0.23586018,84796.0,84794.0,0.35179328]
[1744943838367,0.24765318,84796.0,84792.0,0.08255341]
[1744943838590,0.01179314,84795.0,84794.0,0.09]
[1744943838736,0.24765801,84796.0,84794.0,0.16075931]
[1744943838935,0.24765801,84796.0,84794.0,0.09]
[1744943839359,0.23586296,84795.0,84794.0,0.09]
[1744943840729,0.23586774,84794.0,84791.0,0.0707616]
[1744943842456,0.23586774,84794.0,84792.0,0.01179356]
[1744943843316,0.23586774,84794.0,84791.0,0.4225553]
[1744943843317,0.24766102,84794.0,84791.0,0.4225553]
[1744943844381,0.23586929,84793.0,84791.0,0.4225553]
[1744943845252,0.24766102,84794.0,84791.0,0.4225553]
[1744943848139,0.24766102,84794.0,84792.0,0.00752784]
[1744943849033,0.23586852,84793.0,84792.0,0.00752784]
[1744943866498,0.2358713,84792.0,84791.0,0.09]
[1744943874190,0.2358713,84792.0,84791.0,0.09626581]
[1744943875686,0.2358713,84792.0,84791.0,0.43626581]
[1744943880420,0.2358713,84792.0,84791.0,0.43655831]
[1744943892783,0.21951158,84792.0,84791.0,0.00496668]
[1744943892985,0.21951158,84792.0,84779.0,0.0008428]
[1744943892986,0.23590747,84779.0,84750.0,0.3052955]
[1744943893190,0.23591304,84777.0,84760.0,0.1916751]
[1744943893359,0.44926095,84777.0,84776.0,0.00088793]
[1744943915413,1.0005018,84777.0,84776.0,1e-08]
[1744943915658,1.0005018,84777.0,84742.0,0.0004215]
[1744943915659,0.23596314,84759.0,84742.0,0.0004215]
[1744943915900,0.40151105,84759.0,84758.0,0.00097802]
[1744943916393,0.23596592,84758.0,84757.0,1e-08]
[1744943916654,0.35541383,84758.0,84757.0,0.00013505]
[1744943916881,0.23600769,84743.0,84742.0,0.0004215]
[1744943917181,0.3554556,84743.0,84742.0,0.0004215]
[1744943917630,0.3554556,84743.0,84742.0,0.0128429]
[1744943917852,0.3554556,84743.0,84742.0,0.0004215]
[1744943918902,0.3554556,84743.0,84742.0,0.01288963]
[1744943919134,0.3554556,84743.0,84742.0,0.0004215]
[1744943923216,0.3554556,84743.0,84742.0,0.01281947]
[1744943926026,0.23600769,84743.0,84742.0,0.01281947]
[1744943926230,0.23600769,84743.0,84742.0,0.06241947]
[1744943926430,0.01179996,84746.0,84742.0,0.13322253]
[1744943926639,0.01179899,84753.0,84747.0,0.08259851]
[1744943926872,0.01179913,84752.0,84748.0,0.0451]
[1744943927081,0.24778468,84751.0,84748.0,0.0451]
[1744943927441,0.23598838,84750.0,84748.0,0.0451]
[1744943927639,0.24778468,84751.0,84749.0,0.07079725]
[1744943927989,0.24777929,84753.0,84750.0,0.07079566]
[1744943928191,0.01179913,84752.0,84750.0,0.07079591]
[1744943928319,0.01179899,84753.0,84751.0,0.07079555]
[1744943928735,0.01179913,84752.0,84748.0,0.11589747]
[1744943929176,0.24778474,84751.0,84748.0,0.11589747]
[1744943929584,0.24778474,84751.0,84749.0,0.07079728]
[1744943930211,0.2359882,84750.0,84748.0,0.0451]
[1744943930363,0.2359882,84750.0,84748.0,0.11589808]
[1744943930566,0.01179899,84753.0,84751.0,0.07079521]
[1744943930774,0.24777959,84753.0,84750.0,0.07079574]
[1744943931154,0.24777959,84753.0,84750.0,0.07179574]
[1744943931352,0.01179927,84751.0,84750.0,0.001]
[1744943931826,0.24778468,84751.0,84750.0,0.001]
[1744943941557,0.2360049,84744.0,84743.0,0.34]
[1744943941770,0.23600769,84743.0,84742.0,0.06141947]
[1744943942140,0.23600769,84743.0,84742.0,0.06241947]
[1744943945790,0.23601047,84742.0,84740.0,0.0569008]
[1744943945978,0.23601326,84741.0,84740.0,0.0451]
[1744943947509,0.23601326,84741.0,84740.0,0.05529345]
[1744943951666,0.24780807,84743.0,84740.0,0.12609826]
[1744943952103,0.23601066,84742.0,84740.0,0.12609826]
[1744943952287,0.24780807,84743.0,84740.0,0.12609826]
[1744943952755,0.24780185,84746.0,84742.0,0.08260366]
[1744943952956,0.23600446,84745.0,84742.0,0.08260366]
[1744943953144,0.23600253,84745.0,84742.0,0.08260366]
[1744943953683,0.24780263,84745.0,84742.0,0.01180052]
[1744943953890,0.24780263,84745.0,84742.0,0.08260329]
[1744943955476,0.24780263,84745.0,84742.0,0.34]
[1744943955477,0.23600606,84744.0,84742.0,0.34]
[1744943958409,0.24780263,84745.0,84743.0,0.0708023]
[1744943958591,0.24780263,84745.0,84741.0,0.01180066]
[1744943958792,0.24780263,84745.0,84742.0,0.07080294]
[1744943960533,0.2360057,84744.0,84742.0,0.07080294]
[1744943965419,0.24780594,84744.0,84741.0,0.41080374]
[1744943965929,0.23601047,84742.0,84741.0,0.34]
[1744943966142,0.23600806,84743.0,84741.0,0.34]
[1744943966274,0.24780594,84744.0,84741.0,0.41080336]
[1744943966484,0.23600793,84743.0,84741.0,0.41080336]
[1744943968102,0.24880182,84746.0,84742.0,0.41080294]
[1744943968308,0.24780264,84745.0,84742.0,0.41080294]
[1744943970737,0.23601047,84742.0,84741.0,0.34]
[1744943971847,0.23601047,84742.0,84740.0,0.01019345]
[1744943972249,0.23601047,84742.0,84740.0,0.41080459]
[1744943972410,0.23601047,84742.0,84740.0,0.42109689]
[1744943972609,0.0118001,84745.0,84741.0,0.35180066]
[1744943972835,0.24780292,84745.0,84742.0,0.41080314]
[1744943973054,0.01279996,84746.0,84744.0,0.07080083]
[1744943973254,0.001,84746.0,84745.0,0.07080063]
[1744943973485,0.001,84746.0,84744.0,0.0708014]
[1744943974612,0.01279996,84746.0,84744.0,0.07080079]
[1744943974735,0.001,84746.0,84741.0,0.07080397]
[1744943974955,0.001,84746.0,84743.0,0.07080066]
[1744943975531,0.001,84746.0,84744.0,0.07080147]
[1744943976356,0.001,84746.0,84745.0,0.07080063]
[1744943982730,0.0499,84758.0,84756.0,0.07079137]
[1744943983060,1.51568,84786.0,84762.0,0.07078643]
[1744943983061,0.0469,84763.0,84762.0,0.07078643]
[1744943983265,0.01179746,84764.0,84762.0,0.07078584]
[1744943983473,0.24774647,84765.0,84762.0,0.07078584]
[1744943983691,0.24774647,84765.0,84753.0,0.50758723]
[1744943983692,0.01179801,84760.0,84758.0,0.07078939]
[1744943983899,0.24775544,84761.0,84758.0,0.07078939]
[1744943986918,0.24775544,84761.0,84758.0,0.07940627]
[1744943988229,0.24774756,84764.0,84758.0,0.07078977]
[1744943988428,0.01179718,84766.0,84763.0,0.07078485]
[1744943988595,0.0117976,84763.0,84760.0,0.07078727]
[1744943989364,0.01179732,84765.0,84760.0,0.07078727]
[1744943989542,0.01179732,84765.0,84760.0,0.08258528]
[1744943990370,0.01179718,84766.0,84761.0,0.01179787]
[1744943990583,0.24774046,84767.0,84763.0,0.0707856]
[1744943990794,0.01179746,84764.0,84762.0,0.07078633]
[1744943990994,0.24774429,84765.0,84762.0,0.07078633]
[1744943991217,0.01179773,84762.0,84759.0,0.07078894]
[1744943991593,0.24775212,84763.0,84760.0,0.07078768]
[1744943992166,0.24775272,84762.0,84759.0,0.07078894]
[1744943992383,0.24775688,84761.0,84758.0,0.07960014]
[1744943992588,0.24775688,84761.0,84758.0,0.07078977]
[1744943993430,0.23596039,84760.0,84758.0,0.07078977]
[1744943993795,0.2477584,84760.0,84757.0,0.0707899]
[1744943995740,0.23596364,84759.0,84757.0,0.07956355]
[1744943997085,0.23596364,84759.0,84757.0,0.00877365]
[1744943997536,0.24776179,84759.0,84756.0,0.07079126]
[1744943998489,0.24776493,84758.0,84755.0,0.30764604]
[1744943998718,0.23597094,84757.0,84755.0,0.30764604]
[1744943999126,0.23597094,84757.0,84755.0,0.37843809]
[1744943999447,0.24776493,84758.0,84755.0,0.37843809]
[1744943999851,0.24776493,84758.0,84755.0,0.38727953]
[1744944000610,0.23597149,84756.0,84755.0,0.31648748]
[1744944000788,0.23596908,84757.0,84755.0,0.07963363]
[1744944002427,0.23597149,84756.0,84755.0,0.00884144]
[1744944002847,0.23597149,84756.0,84754.0,0.34]
[1744944002848,0.23597427,84755.0,84754.0,0.34]
[1744944003782,0.24776751,84757.0,84754.0,0.34]
[1744944003783,0.23597191,84756.0,84754.0,0.34]
[1744944006231,0.23597427,84755.0,84754.0,0.34]
[1744944006369,0.23597191,84756.0,84754.0,0.34]
[1744944007034,0.23597191,84756.0,84754.0,0.34904983]
[1744944008464,0.23597166,84756.0,84754.0,0.41984234]
[1744944010105,0.23597166,84756.0,84754.0,0.34904983]
[1744944010106,0.23597427,84755.0,84754.0,0.34904983]
[1744944010604,0.23597166,84756.0,84754.0,0.34904983]
[1744944013046,0.23597166,84756.0,84754.0,0.41984289]
[1744944013250,0.24776745,84757.0,84754.0,0.41984289]
[1744944013540,0.23597169,84756.0,84754.0,0.41984289]
[1744944013859,0.24776745,84757.0,84755.0,0.0707918]
[1744944014760,0.24776745,84757.0,84755.0,0.07079186]
[1744944014969,0.24776745,84757.0,84754.0,0.41984289]
[1744944014970,0.23597265,84756.0,84754.0,0.34904983]
[1744944022067,0.23597265,84756.0,84754.0,0.16859678]
[1744944029342,0.23597265,84756.0,84754.0,0.07984274]
[1744944029454,0.23597265,84756.0,84754.0,0.00904983]
[1744944029662,0.24777122,84756.0,84753.0,0.16079393]
[1744944031182,0.23597464,84755.0,84753.0,0.16079393]
[1744944031631,0.23597464,84755.0,84754.0,0.34934099]
[1744944035384,0.2477688,84757.0,84754.0,0.34934099]
[1744944035597,0.23597226,84756.0,84754.0,0.34934099]
[1744944037515,0.23597427,84755.0,84754.0,0.34934099]
[1744944039440,0.23597226,84756.0,84754.0,0.34934099]
[1744944040111,0.23597427,84755.0,84754.0,0.34934099]
[1744944042883,0.23597226,84756.0,84754.0,0.34934099]
[1744944045680,0.01179801,84760.0,84754.0,0.42013377]
[1744944045888,0.0117976,84763.0,84760.0,0.07078792]
[1744944046098,0.0457,84772.0,84769.0,0.07078059]
[1744944046099,0.01179634,84772.0,84769.0,0.07078059]
[1744944046299,0.24771702,84775.0,84769.0,0.07078059]
[1744944046506,0.01179634,84772.0,84769.0,0.00875954]
[1744944046696,0.0117962,84773.0,84769.0,0.00875954]
[1744944046863,0.01179676,84769.0,84766.0,0.07078303]
[1744944047263,0.24773277,84769.0,84766.0,0.07078258]
[1744944049085,0.24773277,84769.0,84767.0,0.07078224]
[1744944049296,0.00013489,84770.0,84769.0,0.07078059]
[1744944049756,0.00013489,84770.0,84769.0,0.07814199]
[1744944058150,0.00013489,84770.0,84769.0,0.08682616]
[1744944063003,0.00013489,84770.0,84769.0,0.01604557]
[1744944063212,0.00013489,84770.0,84769.0,0.08682616]
[1744944067748,0.00013489,84770.0,84769.0,0.07946476]
[1744944069489,0.23606741,84770.0,84769.0,0.34868417]
[1744944070582,0.23606741,84770.0,84769.0,0.00868417]
[1744944070793,0.28426741,84770.0,84769.0,0.00868417]
[1744944070998,0.28426741,84770.0,84768.0,0.43]
[1744944070999,0.2359353,84769.0,84768.0,0.43]
[1744944071812,0.2359353,84769.0,84768.0,0.09]
[1744944072566,0.23594922,84764.0,84763.0,0.19860045]
[1744944073100,0.23594922,84764.0,84763.0,0.20730565]
[1744944079248,0.23594712,84765.0,84763.0,0.20730565]
[1744944079902,0.23594922,84764.0,84763.0,0.20730565]
[1744944092931,0.23594712,84765.0,84763.0,0.27809125]
[1744944093132,0.24774128,84766.0,84763.0,0.20730565]
[1744944093326,0.23594644,84765.0,84763.0,0.20730565]
[1744944093721,0.23594922,84764.0,84763.0,0.20730565]
[1744944096242,0.23594922,84764.0,84763.0,0.0087052]
[1744944100696,0.23594337,84767.0,84763.0,0.0794908]
[1744944100897,0.01179718,84766.0,84763.0,0.43128826]
[1744944101386,0.23594189,84767.0,84765.0,0.07078393]
[1744944101599,0.23594392,84766.0,84764.0,0.08258203]
[1744944103217,0.23594392,84766.0,84765.0,0.00874387]
[1744944103439,0.0478,84783.0,84769.0,0.01179676]
[1744944103689,0.00090731,84779.0,84776.0,0.01179579]
[1744944103874,0.00090731,84779.0,84778.0,0.41077307]
[1744944104080,0.00090731,84779.0,84778.0,0.41945327]
[1744944104297,0.00090731,84779.0,84778.0,0.3486802]
[1744944104440,0.23681478,84779.0,84778.0,0.3486802]
[1744944105059,0.23681478,84779.0,84778.0,0.01768405]
[1744944108020,0.23681478,84779.0,84778.0,0.00866265]
[1744944108359,0.23681478,84779.0,84776.0,0.07077446]
[1744944108556,0.24861015,84779.0,84778.0,0.00721595]
[1744944108761,0.24861015,84779.0,84777.0,0.00721237]
[1744944109060,0.24861015,84779.0,84778.0,0.00721595]
[1744944109246,0.01270268,84779.0,84778.0,0.00721595]
[1744944109439,0.24861045,84779.0,84776.0,0.07959981]
[1744944109648,0.01270268,84779.0,84778.0,0.00721595]
[1744944109820,0.01270268,84779.0,84777.0,0.00721237]
[1744944110054,0.00090731,84779.0,84778.0,0.00721595]
[1744944110252,0.00090731,84779.0,84777.0,0.07077376]
[1744944110450,0.00090731,84779.0,84778.0,0.00721237]
[1744944111947,0.23681478,84779.0,84778.0,0.00721237]
[1744944112426,0.24861015,84779.0,84776.0,0.07959981]
[1744944112677,0.24861015,84779.0,84778.0,0.00721595]
[1744944112892,0.24861015,84779.0,84777.0,0.07798624]
[1744944113042,0.24861015,84779.0,84778.0,0.00721595]
[1744944113252,0.24861015,84779.0,84776.0,0.07959981]
[1744944113444,0.24861015,84779.0,84777.0,0.00721237]
[1744944114396,0.24861015,84779.0,84777.0,0.07798601]
[1744944114596,0.24861015,84779.0,84777.0,0.00721237]
[1744944117287,0.23591025,84778.0,84777.0,0.00721237]
[1744944117491,0.23591304,84777.0,84776.0,0.00882535]
[1744944117827,0.23591304,84777.0,84776.0,0.00714646]
[1744944118218,0.23592974,84771.0,84770.0,0.34]
[1744944118531,0.2359355,84769.0,84765.0,0.42258103]
[1744944118661,0.23594014,84768.0,84765.0,0.43121263]
[1744944119318,0.23594142,84767.0,84765.0,0.43121263]
[1744944119518,0.23594142,84767.0,84765.0,0.23546868]
[1744944120043,0.24773704,84768.0,84765.0,0.30625191]
[1744944120524,0.24773704,84768.0,84765.0,0.31804923]
[1744944121019,0.23594305,84767.0,84765.0,0.30625233]
[1744944121230,0.23593606,84769.0,84765.0,0.31804916]
[1744944121445,0.23593842,84768.0,84766.0,0.08258027]
[1744944121663,0.23593842,84768.0,84766.0,0.01179718]
[1744944122877,0.23593842,84768.0,84767.0,0.34]
[1744944123985,0.23593842,84768.0,84766.0,0.43]
[1744944124326,0.24773282,84769.0,84766.0,0.28865926]
[1744944124533,0.2359186,84775.0,84771.0,0.01179648]
[1744944124729,0.24771453,84775.0,84772.0,0.01179634]
[1744944125324,0.24771453,84775.0,84772.0,0.08257424]
[1744944126342,0.24771453,84775.0,84772.0,0.42257424]
[1744944126558,0.01179593,84775.0,84772.0,0.42257424]
[1744944126766,0.2477149,84775.0,84773.0,0.41077691]
[1744944127209,0.01179579,84776.0,84774.0,0.41077604]
[1744944127830,0.01179565,84777.0,84775.0,0.41077558]
[1744944127945,0.24770952,84777.0,84775.0,0.34]
[1744944128381,0.24770952,84777.0,84775.0,0.41077534]
[1744944128597,0.24770952,84777.0,84775.0,0.34]
[1744944129071,0.24770874,84777.0,84774.0,0.01179606]
[1744944129271,0.23591646,84776.0,84774.0,0.35179606]
[1744944129493,0.23591646,84776.0,84774.0,0.42257218]
[1744944130674,0.24770874,84777.0,84774.0,0.08257218]
[1744944131010,0.23592402,84774.0,84772.0,0.34]
[1744944131222,0.24771506,84775.0,84772.0,0.41077738]
[1744944131448,0.24771506,84775.0,84773.0,0.07077702]
[1744944132757,0.24771506,84775.0,84772.0,0.42257377]
[1744944132932,0.24771513,84775.0,84772.0,0.42257377]
[1744944133114,0.24771513,84775.0,84773.0,0.00716321]
[1744944133313,0.01179593,84775.0,84773.0,0.00716321]
[1744944133517,0.24771467,84775.0,84773.0,0.34716321]
[1744944137391,0.23592139,84774.0,84773.0,0.34716321]
[1744944137937,0.24771525,84775.0,84773.0,0.34716321]
[1744944138293,0.24771525,84775.0,84773.0,0.41794006]
[1744944138903,0.24771202,84776.0,84774.0,0.34]
[1744944139106,0.24771202,84776.0,84775.0,0.00715238]
[1744944141708,0.24771202,84776.0,84771.0,0.00823157]
[1744944141912,0.24771202,84776.0,84773.0,0.07077671]
[1744944142126,0.24771202,84776.0,84774.0,0.00593333]
[1744944142443,0.24771202,84776.0,84774.0,0.4167096]
[1744944142640,0.00090731,84779.0,84777.0,0.07077388]
[1744944142895,0.00090731,84779.0,84778.0,0.00593692]
[1744944143492,0.23681478,84779.0,84778.0,0.00593692]
[1744944144983,0.23591096,84778.0,84775.0,0.01179593]
[1744944145184,0.24770996,84777.0,84774.0,0.35179606]
[1744944145454,0.23591612,84776.0,84774.0,0.35179606]
[1744944145963,0.23591612,84776.0,84773.0,0.08257181]
[1744944146297,0.01179565,84777.0,84774.0,0.07077603]
[1744944146498,0.01179565,84777.0,84775.0,0.0707751]
[1744944146823,0.24861015,84779.0,84775.0,0.0707751]
[1744944146824,0.00090731,84779.0,84775.0,0.01179593]
[1744944147030,0.00090731,84779.0,84777.0,0.07077316]
[1744944147235,0.23681522,84779.0,84776.0,0.08257053]
[1744944147665,0.23681522,84779.0,84777.0,0.00736042]
[1744944148395,0.23681522,84779.0,84778.0,0.00736042]
[1744944149439,0.23681522,84779.0,84778.0,0.01329286]
[1744944154437,0.23681522,84779.0,84768.0,0.17864]
[1744944154438,0.23591766,84776.0,84768.0,0.17864]
[1744944154643,0.23672043,84790.0,84779.0,0.01179537]
[1744944154848,5.306e-05,84784.0,84781.0,0.07077057]
[1744944155050,5.306e-05,84784.0,84782.0,0.07076969]
[1744944155476,5.306e-05,84784.0,84783.0,0.0707689]
[1744944158412,0.000843,84789.0,84788.0,0.34]
[1744944159206,0.000843,84789.0,84788.0,0.35253078]
[1744944159794,0.000843,84789.0,84788.0,0.42329551]
[1744944161803,0.23672265,84789.0,84788.0,0.01253078]
[1744944162023,0.23672265,84789.0,84785.0,0.35179453]
[1744944162024,0.235888,84786.0,84785.0,0.34]
[1744944162169,0.23672265,84789.0,84788.0,0.07557569]
[1744944162170,0.000843,84789.0,84788.0,0.07557569]
[1744944162371,0.000843,84789.0,84787.0,0.34]
[1744944162643,0.23672401,84789.0,84788.0,0.00480739]
[1744944162771,0.000843,84789.0,84788.0,0.07557212]
[1744944163647,0.23672265,84789.0,84788.0,0.01717435]
[1744944164196,0.23672265,84789.0,84788.0,0.02613175]
[1744944187371,0.000843,84789.0,84788.0,0.02613175]
[1744944188475,0.000843,84789.0,84788.0,0.36132436]
[1744944188683,0.23672265,84789.0,84788.0,0.36132436]
[1744944189122,0.000843,84789.0,84788.0,0.36132436]
[1744944189349,0.000843,84789.0,84788.0,0.43208909]
[1744944196739,0.000843,84789.0,84788.0,0.09208909]
[1744944196976,0.000843,84789.0,84788.0,0.43208909]
[1744944223598,0.23672265,84789.0,84788.0,0.36132436]
[1744944223925,0.23772265,84789.0,84788.0,0.36132436]
[1744944224136,0.28742265,84789.0,84788.0,0.36132436]
[1744944224601,0.28742265,84789.0,84788.0,0.02132436]
[1744944224827,0.28742265,84789.0,84787.0,0.05]
[1744944225036,0.23588243,84788.0,84787.0,0.06244019]
[1744944225412,0.33458243,84788.0,84787.0,0.01244019]
[1744944225624,0.235888,84786.0,84785.0,0.13192]
[1744944226496,0.235888,84786.0,84785.0,0.14421612]
[1744944227570,0.235888,84786.0,84785.0,0.01229612]
[1744944227975,0.23590469,84780.0,84779.0,0.34893454]
[1744944228300,0.28560469,84780.0,84779.0,0.34893454]
[1744944228417,0.28560469,84780.0,84779.0,0.00893454]
[1744944228643,0.2359186,84775.0,84774.0,0.34]
[1744944228856,0.2359186,84775.0,84774.0,0.34005306]
[1744944229933,0.2359186,84775.0,84774.0,0.35196703]
[1744944231948,0.2359186,84775.0,84774.0,0.36062607]
[1744944235323,0.2359186,84775.0,84774.0,0.12376864]
[1744944235522,0.2359186,84775.0,84774.0,0.02062607]
[1744944236667,0.23591659,84776.0,84774.0,0.02062607]
[1744944237233,0.2359186,84775.0,84774.0,0.36062607]
[1744944238084,0.2359186,84775.0,84774.0,0.36500488]
[1744944244158,0.23591609,84776.0,84774.0,0.4357811]
[1744944244365,0.23591609,84776.0,84774.0,0.36500488]
[1744944245224,0.2359186,84775.0,84774.0,0.36500488]
[1744944245723,0.23591609,84776.0,84774.0,0.43578101]
[1744944245917,0.23591035,84778.0,84776.0,0.07077409]
[1744944246129,0.24770586,84778.0,84775.0,0.07077539]
[1744944246282,0.24770389,84779.0,84777.0,0.00442007]
[1744944246490,0.24770389,84779.0,84776.0,0.41077437]
[1744944246711,0.24770389,84779.0,84778.0,0.00442365]
[1744944246914,0.23590191,84781.0,84777.0,0.07077337]
[1744944247113,0.24768601,84785.0,84782.0,0.34]
[1744944247317,0.23589402,84784.0,84782.0,0.34]
[1744944247597,0.23589402,84784.0,84783.0,0.00444515]
[1744944248717,0.01179426,84787.0,84783.0,0.34444515]
[1744944248924,0.01179426,84787.0,84783.0,0.00444515]
[1744944249127,0.23672425,84789.0,84784.0,0.07076806]
[1744944249445,0.23672425,84789.0,84784.0,0.07521354]
[1744944250013,0.24767793,84788.0,84785.0,0.41076696]
[1744944250214,0.24767793,84788.0,84786.0,0.00444906]
[1744944250459,0.23588521,84787.0,84786.0,0.00444906]
[1744944251542,0.24769145,84783.0,84780.0,0.4107707]
[1744944251986,0.24769145,84783.0,84781.0,0.41077019]
[1744944252193,0.23589912,84782.0,84781.0,0.34]
[1744944252588,0.24769145,84783.0,84781.0,0.34]
[1744944253196,0.24769145,84783.0,84782.0,0.00443115]
[1744944253801,0.23590021,84782.0,84780.0,0.41077111]
[1744944255154,0.247697,84781.0,84779.0,0.07077181]
[1744944255603,0.01179509,84781.0,84779.0,0.07077181]
[1744944261022,0.24769469,84782.0,84779.0,0.07077181]
[1744944261814,0.24769469,84782.0,84780.0,0.41077131]
[1744944262649,0.23590191,84781.0,84780.0,0.34]
[1744944262849,0.24769469,84782.0,84774.0,0.02062607]
[1744944262850,0.24770973,84777.0,84774.0,0.02062607]
[1744944263072,0.2359186,84775.0,84774.0,0.02062607]
[1744944263558,0.23591582,84776.0,84774.0,0.02062607]
[1744944263989,0.24770897,84777.0,84774.0,0.02062607]
[1744944264214,0.24771067,84777.0,84774.0,0.02062607]
[1744944267957,0.24770692,84778.0,84774.0,0.02062607]
[1744944268479,0.01179551,84778.0,84774.0,0.09140199]
[1744944268618,0.24770309,84779.0,84774.0,0.10319805]
[1744944268848,0.24770309,84779.0,84774.0,0.09140199]
[1744944269250,0.2477018,84780.0,84774.0,0.09140199]
[1744944269508,0.01179537,84779.0,84775.0,0.41077528]
[1744944269724,0.2477018,84780.0,84775.0,0.41077528]
[1744944270195,0.23589467,84784.0,84777.0,0.08256954]
[1744944270413,0.01179495,84782.0,84778.0,0.41077251]
[1744944270627,0.24769323,84783.0,84779.0,0.07077221]
[1744944270837,0.01179495,84782.0,84779.0,0.34]
[1744944271261,0.24769449,84782.0,84779.0,0.34]
[1744944271824,0.01179509,84781.0,84778.0,0.07077251]
[1744944272455,0.01179509,84781.0,84777.0,0.43436489]
[1744944272884,0.24769965,84781.0,84777.0,0.34]
[1744944273414,0.01179509,84781.0,84777.0,0.43436461]
[1744944273639,0.24769715,84781.0,84777.0,0.43436461]
[1744944275068,0.01179537,84779.0,84776.0,0.43436602]
[1744944275294,0.01179523,84780.0,84776.0,0.43436602]
[1744944276147,0.24769715,84781.0,84777.0,0.09436499]
[1744944278267,0.01179509,84781.0,84777.0,0.09436499]
[1744944278672,0.24769775,84781.0,84777.0,0.09436499]
[1744944281491,0.01179509,84781.0,84778.0,0.09436398]
[1744944283467,0.24769739,84781.0,84778.0,0.43436403]
[1744944283962,0.01179509,84781.0,84778.0,0.43436403]
[1744944284166,0.24769421,84782.0,84777.0,0.43436498]
[1744944284368,0.23590399,84781.0,84777.0,0.43436498]
[1744944284517,0.24769908,84781.0,84778.0,0.09436403]
[1744944291143,0.01179523,84780.0,84777.0,0.09436498]
[1744944291354,0.01179523,84780.0,84778.0,0.4343639]
[1744944292771,0.24769908,84781.0,84778.0,0.0943639]
[1744944294272,0.132723,84804.0,84781.0,0.01179509]
[1744944294273,0.011793,84796.0,84781.0,0.01179509]
[1744944294495,0.01663619,84799.0,84792.0,0.43434754]
[1744944294496,0.01179273,84798.0,84792.0,0.43434754]
[1744944294711,0.01663619,84799.0,84792.0,0.43434754]
[1744944294925,0.0048436,84799.0,84793.0,0.09434712]
[1744944295136,0.01663619,84799.0,84792.0,0.43434754]
[1744944295324,0.0048436,84799.0,84793.0,0.09434684]
[1744944295592,0.0048436,84799.0,84794.0,0.09434629]
[1744944296363,0.01663619,84799.0,84794.0,0.09434629]
[1744944297094,0.0048436,84799.0,84794.0,0.09434629]
[1744944299156,0.0048436,84799.0,84792.0,0.05444254]
[1744944299370,0.0048436,84799.0,84794.0,0.09434629]
[1744944300409,0.0048436,84799.0,84794.0,0.43434629]
[1744944300583,0.01179287,84797.0,84794.0,0.43434629]
[1744944300942,0.24764939,84798.0,84794.0,0.43434629]
[1744944301355,0.23585788,84797.0,84794.0,0.43434629]
[1744944302004,0.23586022,84796.0,84794.0,0.34]
[1744944302293,0.24765075,84797.0,84794.0,0.43434629]
[1744944304066,0.01179287,84797.0,84794.0,0.43434629]
[1744944304296,0.24765177,84797.0,84794.0,0.43434629]
[1744944306428,0.01179287,84797.0,84794.0,0.43434629]
[1744944307080,0.01179287,84797.0,84794.0,0.34]
[1744944307810,0.24764793,84798.0,84794.0,0.34]
[1744944310572,0.01179398,84789.0,84786.0,0.34]
[1744944310771,0.0583937,84791.0,84786.0,0.34]
[1744944311116,0.0466,84791.0,84786.0,0.43435473]
[1744944311319,0.01179384,84790.0,84786.0,0.43435473]
[1744944313463,0.24767363,84789.0,84786.0,0.34]
[1744944313633,0.01179384,84790.0,84786.0,0.45794282]
[1744944314085,0.24767773,84788.0,84785.0,0.34]
[1744944314481,0.23588698,84787.0,84785.0,0.34]
[1744944315013,0.0117944,84786.0,84784.0,0.34]
[1744944315357,0.24768264,84786.0,84784.0,0.34]
[1744944315874,0.01179412,84788.0,84784.0,0.34]
[1744944316285,0.01179412,84788.0,84784.0,0.11794637]
[1744944316491,0.24767238,84790.0,84784.0,0.12974143]
[1744944316692,0.01179398,84789.0,84786.0,0.34]
[1744944316870,0.24767238,84790.0,84786.0,0.34]
[1744944317562,0.24767238,84790.0,84787.0,0.05]
[1744944317988,0.0583937,84791.0,84788.0,0.34]
[1744944318187,0.01179342,84793.0,84788.0,0.35179412]
[1744944318393,0.24766321,84793.0,84790.0,0.34]
[1744944318600,0.24766141,84794.0,84790.0,0.34]
[1744944318798,0.24766219,84793.0,84790.0,0.34]